fUST/lending_fUST_20250506
["ID","MTS","AMOUNT","RATE_DAILY","PERIOD"]
[360008681,1746478238132,-500.0,0.00020109,2]
[360008682,1746478238141,-500.0,0.00020109,2]
[360008683,1746478238151,-57549.51105728,0.0002011,2]
[360008684,1746478238160,-643.4987796,0.0002011,2]
[360008686,1746478238170,-300.0,0.00020998,2]
[360008687,1746478238180,-243.69923839,0.00020998,2]
[360008688,1746478238190,-500.0,0.00021375,2]
[360008689,1746478238202,-500.0,0.00021375,2]
[360008690,1746478238211,-534.07264711,0.00021375,2]
[360008691,1746478238221,-500.0,0.00021375,2]
[360008692,1746478238230,-500.0,0.00021543,2]
[360008693,1746478238240,-398.0593844,0.00021767,2]
[360008694,1746478238250,-420.0,0.00021894,2]
[360008695,1746478238259,-350.33704161,0.00021918,2]
[360008696,1746478238269,-500.0,0.00022289,2]
[360008697,1746478238279,-509.62149181,0.00022289,2]
[360008698,1746478238288,-500.0,0.00022289,2]
[360008699,1746478238298,-500.0,0.00022289,2]
[360008700,1746478238307,-373.54494075,0.00022289,2]
[360008701,1746478238317,-500.0,0.00022289,2]
[360008702,1746478238327,-500.0,0.00022289,2]
[360008703,1746478238336,-500.0,0.00022289,2]
[360008704,1746478238346,-501.87833635,0.00022289,2]
[360008705,1746478238355,-467.17393021,0.00022694,2]
[360008706,1746478238365,-437.2574115,0.00023071,2]
[360008707,1746478238374,-217.149529,0.00023171,2]
[360008708,1746478238383,-500.0,0.00023333,2]
[360008709,1746478238393,-500.0,0.00023333,2]
[360008710,1746478238403,-426.76580321,0.00023626,2]
[360008711,1746478238412,-15666.9472179,0.00023653,2]
[360008712,1746478238422,-10000.0,0.00023726,2]
[360008713,1746478238432,-587.0,0.00023838,2]
[360008714,1746478238442,-12625.90249752,0.00024676,2]
[360008715,1746478238451,-1000.0,0.00024676,2]
[360008716,1746478238460,-554.87024308,0.00024757,2]
[360008717,1746478238470,-500.0,0.00024757,2]
[360008718,1746478238479,-500.0,0.00024767,2]
[360008719,1746478238488,-500.0,0.00024767,2]
[360008720,1746478238498,-35372.16747343,0.000248,2]
[360008721,1746478238508,-98268.0660488,0.000249,2]
[360008722,1746478238517,-19653.6132098,0.0002499,2]
[360008723,1746478238527,-380.36,0.00025,10]
[360008724,1746478238536,-5406.02538659,0.00025,2]
[360008725,1746478238547,-500.0,0.00025,30]
[360008726,1746478238556,-500.0,0.00025,30]
[360008727,1746478238565,-940.36698433,0.00025,30]
[360008728,1746478238575,-15447.0,0.00025,2]
[360008729,1746478238585,-501.34714283,0.000253,12]
[360008730,1746478238851,-501.34714269,0.000253,12]
[360008731,1746478238863,-501.34714269,0.000253,12]
[360008732,1746478238873,-501.34714269,0.000253,12]
[360008733,1746478238884,-501.34714269,0.000253,12]
[360008734,1746478238894,-501.34714269,0.000253,12]
[360008735,1746478238904,-467.17393021,0.00025379,2]
[360008736,1746478238914,-501.34714269,0.00025624,13]
[360008737,1746478238923,-426.76580321,0.00025914,2]
[360008738,1746478238933,-823.0,0.00025954,2]
[360008739,1746478238942,-500.0,0.00026,30]
[360008740,1746478238952,-500.0,0.00026,30]
[360008741,1746478238965,-500.0,0.00026,30]
[360008742,1746478238974,-500.0,0.00026,30]
[360008743,1746478238983,-500.0,0.00026,30]
[360008744,1746478238993,-545.86252667,0.00026,30]
[360008745,1746478239005,-501.34714269,0.00026245,14]
[360008746,1746478239014,-217.149529,0.00026595,2]
[360008747,1746478239024,-160.0,0.00026763,2]
[360008748,1746478239034,-160.0,0.00026771,2]
[360008749,1746478239045,-1000.0,0.00026854,2]
[360008750,1746478239055,-1000.0,0.00026854,2]
[360008751,1746478239064,-501.34714269,0.00026866,16]
[360008752,1746478239076,-1000.0,0.00027022,2]
[360008753,1746478239088,-375.013364,0.00027397,2]
[360008754,1746478239098,-501.34714269,0.00027486,17]
[360008755,1746478239109,-1000.0,0.00027768,5]
[360008756,1746478239120,-1000.0,0.00027768,5]
[360008757,1746478239132,-467.17393021,0.00028063,2]
[360008758,1746478239142,-501.34714269,0.00028107,18]
[360008759,1746478239151,-426.76580321,0.00028201,2]
[360008760,1746478239161,-1152.0,0.00028257,2]
[360008761,1746478239171,-501.34714269,0.00028728,19]
[360008762,1746478239181,-1000.0,0.00028813,5]
[360008763,1746478239191,-501.34714269,0.00029348,20]
[360008764,1746478239201,-291.64597461,0.00029826,4]
[360008765,1746478239212,-501.34714269,0.00029969,22]
[360008766,1746478239223,-58960.8396293,0.0002999,2]
[360008767,1746478239232,-104729.64269376,0.0003,2]
[360008768,1746478239243,-500.0,0.0003,5]
[360008769,1746478239253,-500.0,0.0003,5]
[360008770,1746478239263,-535.77666957,0.0003,5]
[360008771,1746478239272,-500.0,0.0003,5]
[360008772,1746478239282,-500.0,0.0003,5]
[360008773,1746478239293,-500.0,0.0003,5]
[360008774,1746478239302,-500.0,0.0003,5]
[360008775,1746478239312,-500.0,0.0003,5]
[360008776,1746478239321,-500.0,0.0003,5]
[360008777,1746478239331,-500.0,0.0003,5]
[360008778,1746478239340,-541.37227278,0.0003,5]
[360008779,1746478239349,-500.0,0.0003,5]
[360008780,1746478239360,-217.149529,0.0003002,2]
[360008781,1746478239371,-1181.278938,0.00030165,2]
[360008782,1746478239381,-1000.0,0.00030237,5]
[360008783,1746478239391,-500.0,0.00030246,5]
[360008784,1746478239401,-426.76580321,0.00030489,2]
[360008785,1746478239412,-501.34714269,0.0003059,23]
[360008786,1746478239421,-467.17393021,0.00030747,2]
[360008787,1746478239430,-1613.0,0.00030766,2]
[360008788,1746478239440,-501.34714269,0.0003121,24]
[360008789,1746478239450,-500.0,0.00031233,2]
[360008790,1746478239459,-151.0,0.000316,19]
[360008791,1746478239468,-501.34714269,0.00031831,25]
[360008792,1746478239478,-300.60704227,0.00031991,2]
[360008793,1746478239489,-8595.0,0.00032,3]
[360008794,1746478239499,-1000.0,0.00032329,2]
[360008795,1746478239509,-501.34714269,0.00032452,26]
[360008796,1746478239519,-151.0,0.000327,14]
[360008797,1746478239529,-19653.6132098,0.00032746,2]
[360008798,1746478239539,-19653.6132098,0.00032756,2]
[360008799,1746478239549,-186.166,0.00032756,33]
[360008800,1746478239558,-19653.6132098,0.00032766,2]
[360008801,1746478239568,-500.0,0.00032773,5]
[360008802,1746478239577,-500.0,0.00032773,5]
[360008803,1746478239586,-500.0,0.00032773,5]
[360008804,1746478239596,-370000.0,0.00032776,2]
[360008805,1746478239605,-151.0,0.00032776,7]
[360008806,1746478239614,-151.0,0.00032776,7]
[360008807,1746478239624,-179.08610196,0.00032776,2]
[360008808,1746478239634,-426.76580321,0.00032776,2]
[360008809,1746478239643,-1464.7374329,0.00032794,4]
[360008810,1746478239653,-500.0,0.00032873,5]
[360008811,1746478239663,-500.0,0.00032873,5]
[360008812,1746478239672,-500.0,0.00032873,5]
[360008813,1746478239682,-500.0,0.00032873,5]
[360008814,1746478239691,-500.0,0.00032873,5]
[360008815,1746478239701,-500.0,0.00032873,5]
[360008816,1746478239711,-500.0,0.00032873,5]
[360008817,1746478239720,-500.0,0.00032873,5]
[360008818,1746478239730,-500.0,0.00032873,5]
[360008819,1746478239739,-500.0,0.00032873,5]
[360008820,1746478239749,-500.0,0.00032873,5]
[360008821,1746478239759,-500.0,0.00032873,5]
[360008822,1746478239768,-150.0,0.00032873,5]
[360008823,1746478239777,-500.0,0.00032873,5]
[360008824,1746478239787,-500.0,0.00032873,5]
[360008825,1746478239797,-500.0,0.00032873,5]
[360008826,1746478239806,-525.66624244,0.00032873,5]
[360008827,1746478239816,-501.91534911,0.00032873,5]
[360008829,1746478239825,-500.0,0.00032873,5]
[360008831,1746478239836,-500.0,0.00032873,3]
[360008833,1746478239849,-500.0,0.00032873,5]
[360008835,1746478239859,-500.0,0.00032873,5]
[360008837,1746478239869,-150.0,0.00032873,5]
[360008839,1746478239880,-501.97098283,0.00032873,5]
[360008841,1746478239889,-161.467075,0.00032876,7]
[360008843,1746478239899,-1465.62,0.00032876,8]
[360008845,1746478239909,-400.0,0.00032876,8]
[360008848,1746478239919,-400.0,0.00032876,8]
[360008849,1746478239928,-400.0,0.00032876,8]
[360008851,1746478239938,-301.75084398,0.00032876,8]
[360008853,1746478239948,-400.0,0.00032876,8]
[360008856,1746478239961,-400.0,0.00032876,8]
[360008858,1746478239971,-400.0,0.00032876,8]
[360008860,1746478239981,-450.35872327,0.00032876,8]
[360008862,1746478239991,-400.0,0.00032876,8]
[360008864,1746478240002,-400.0,0.00032876,8]
[360008866,1746478240011,-386.67866979,0.00032876,8]
[360008868,1746478240022,-506.86,0.00032876,8]
[360008870,1746478240032,-400.0,0.00032876,8]
[360008872,1746478240042,-400.0,0.00032876,8]
[360008874,1746478240052,-650.49,0.00032876,8]
[360008876,1746478240062,-475.16411722,0.00032876,8]
[360008878,1746478240071,-400.0,0.00032876,8]
[360008880,1746478240081,-400.0,0.00032876,8]
[360008882,1746478240091,-400.0,0.00032876,8]
[360008884,1746478240101,-481.88119386,0.00032876,8]
[360008886,1746478240111,-400.0,0.00032876,8]
[360008888,1746478240120,-400.0,0.00032876,8]
[360008890,1746478240130,-400.0,0.00032876,8]
[360008892,1746478240140,-400.0,0.00032876,8]
[360008894,1746478240149,-400.0,0.00032876,8]
[360008896,1746478240159,-180.8335701,0.00032876,8]
[360008898,1746478240169,-400.0,0.00032876,8]
[360008900,1746478240180,-400.0,0.00032876,8]
[360008902,1746478240190,-1120.46,0.00032876,8]
[360008904,1746478240200,-400.0,0.00032876,8]
[360008906,1746478240210,-400.0,0.00032876,8]
[360008908,1746478240220,-753.58,0.00032876,8]
[360008910,1746478240229,-400.0,0.00032876,8]
[360008912,1746478240239,-400.0,0.00032876,8]
[360008914,1746478240248,-400.0,0.00032876,8]
[360008916,1746478240257,-508.66254796,0.00032876,8]
[360008918,1746478240267,-500.0,0.00032876,8]
[360008920,1746478240276,-400.0,0.00032876,8]
[360008922,1746478240286,-507.88,0.00032876,8]
[360008924,1746478240295,-400.0,0.00032876,8]
[360008926,1746478240305,-156.3405842,0.00032876,8]
[360008928,1746478240314,-1829.51,0.00032876,8]
[360008930,1746478240323,-400.0,0.00032876,8]
[360008932,1746478240333,-400.0,0.00032876,8]
[360008934,1746478240343,-400.0,0.00032876,8]
[360008936,1746478240352,-342.20262717,0.00032876,8]
[360008938,1746478240363,-1620.57,0.00032876,8]
[360008941,1746478240373,-400.0,0.00032876,8]
[360008943,1746478240383,-400.0,0.00032876,8]
[360008945,1746478240393,-592.51,0.00032876,8]
[360008947,1746478240402,-400.0,0.00032876,8]
[360008949,1746478240412,-537.21,0.00032876,8]
[360008951,1746478240421,-400.0,0.00032876,8]
[360008953,1746478240430,-2523.41,0.00032876,8]
[360008955,1746478240440,-547.87,0.00032876,8]
[360008957,1746478240449,-400.0,0.00032876,8]
[360008959,1746478240459,-400.0,0.00032876,8]
[360008961,1746478240469,-543.46,0.00032876,8]
[360008963,1746478240478,-400.0,0.00032876,8]
[360008965,1746478240488,-400.0,0.00032876,8]
[360008967,1746478240497,-500.0,0.00032876,8]
[360008969,1746478240507,-400.0,0.00032876,8]
[360008971,1746478240516,-400.0,0.00032876,8]
[360008973,1746478240526,-770.95,0.00032876,8]
[360008975,1746478240535,-1081.95,0.00032876,8]
[360008977,1746478240545,-400.0,0.00032876,8]
[360008979,1746478240555,-400.0,0.00032876,8]
[360008981,1746478240565,-400.0,0.00032876,8]
[360008983,1746478240575,-470.42855279,0.00032876,8]
[360008985,1746478240585,-400.0,0.00032876,8]
[360008987,1746478240594,-400.0,0.00032876,8]
[360008989,1746478240604,-400.0,0.00032876,8]
[360008991,1746478240613,-483.31,0.00032876,8]
[360008993,1746478240622,-400.0,0.00032876,8]
[360008995,1746478240632,-1243.4,0.00032876,8]
[360008997,1746478240641,-507.71144657,0.00032876,8]
[360008999,1746478240651,-1098.85,0.00032876,8]
[360009001,1746478240661,-482.85,0.00032876,8]
[360009003,1746478240670,-400.0,0.00032876,8]
[360009005,1746478240680,-400.0,0.00032876,8]
[360009007,1746478240689,-566.0,0.00032876,8]
[360009009,1746478240699,-400.0,0.00032876,8]
[360009012,1746478240709,-400.0,0.00032876,8]
[360009014,1746478240718,-400.0,0.00032876,8]
[360009016,1746478240728,-400.0,0.00032876,8]
[360009018,1746478240737,-400.0,0.00032876,8]
[360009020,1746478240746,-400.0,0.00032876,8]
[360009021,1746478240755,-400.0,0.00032876,8]
[360009023,1746478240765,-400.0,0.00032876,8]
[360009026,1746478240775,-400.0,0.00032876,8]
[360009028,1746478240784,-400.0,0.00032876,8]
[360009030,1746478240794,-400.0,0.00032876,8]
[360009032,1746478240803,-400.0,0.00032876,8]
[360009034,1746478240813,-221.33037167,0.00032876,8]
[360009036,1746478240823,-400.0,0.00032876,8]
[360009038,1746478240833,-400.0,0.00032876,8]
[360009040,1746478240842,-709.8,0.00032876,8]
[360009042,1746478240852,-400.0,0.00032876,8]
[360009044,1746478240861,-400.0,0.00032876,8]
[360009046,1746478240871,-4121.14,0.00032876,8]
[360009048,1746478240880,-400.0,0.00032876,8]
[360009050,1746478240891,-812.34,0.00032876,8]
[360009052,1746478240900,-654.51,0.00032876,8]
[360009054,1746478240909,-400.0,0.00032876,8]
[360009056,1746478240918,-730.71,0.00032876,8]
[360009058,1746478240927,-400.0,0.00032876,8]
[360009060,1746478240937,-400.0,0.00032876,8]
[360009062,1746478240947,-400.0,0.00032876,8]
[360009064,1746478240959,-400.0,0.00032876,8]
[360009066,1746478240969,-400.0,0.00032876,8]
[360009068,1746478240978,-400.0,0.00032876,8]
[360009070,1746478240988,-400.0,0.00032876,8]
[360009072,1746478241000,-2752.23,0.00032876,2]
[360009074,1746478241009,-400.0,0.00032876,8]
[360009076,1746478241019,-432.56,0.00032876,8]
[360009078,1746478241029,-400.0,0.00032876,8]
[360009080,1746478241038,-762.68,0.00032876,8]
[360009082,1746478241049,-431.94,0.00032876,8]
[360009084,1746478241059,-436.54,0.00032876,8]
[360009086,1746478241068,-400.0,0.00032876,8]
[360009088,1746478241078,-400.0,0.00032876,8]
[360009091,1746478241088,-673.29,0.00032876,8]
[360009093,1746478241097,-400.0,0.00032876,8]
[360009094,1746478241106,-400.0,0.00032876,8]
[360009096,1746478241116,-1252.09,0.00032876,8]
[360009099,1746478241125,-702.93,0.00032876,8]
[360009101,1746478241135,-400.0,0.00032876,8]
[360009103,1746478241144,-400.0,0.00032876,8]
[360009105,1746478241154,-400.0,0.00032876,8]
[360009107,1746478241163,-400.0,0.00032876,8]
[360009109,1746478241172,-1335.89,0.00032876,8]
[360009111,1746478241181,-400.0,0.00032876,8]
[360009113,1746478241191,-400.0,0.00032876,8]
[360009115,1746478241200,-409.22,0.00032876,8]
[360009117,1746478241209,-400.0,0.00032876,8]
[360009119,1746478241218,-400.0,0.00032876,8]
[360009121,1746478241228,-400.0,0.00032876,8]
[360009123,1746478241238,-990.15,0.00032876,8]
[360009125,1746478241247,-400.0,0.00032876,8]
[360009127,1746478241257,-400.0,0.00032876,8]
[360009129,1746478241266,-526.44817837,0.00032876,8]
[360009131,1746478241276,-400.0,0.00032876,8]
[360009133,1746478241285,-784.71,0.00032876,8]
[360009135,1746478241295,-400.0,0.00032876,8]
[360009137,1746478241304,-624.56,0.00032876,8]
[360009139,1746478241314,-411.93,0.00032876,8]
[360009141,1746478241323,-446.32,0.00032876,8]
[360009143,1746478241331,-500.9,0.00032876,8]
[360009145,1746478241341,-827.29,0.00032876,8]
[360009147,1746478241350,-530.84,0.00032876,8]
[360009149,1746478241359,-693.82,0.00032876,8]
[360009151,1746478241368,-400.0,0.00032876,8]
[360009153,1746478241377,-612.41,0.00032876,8]
[360009155,1746478241387,-400.0,0.00032876,8]
[360009157,1746478241396,-400.0,0.00032876,8]
[360009159,1746478241405,-400.0,0.00032876,8]
[360009161,1746478241414,-461.37,0.00032876,8]
[360009163,1746478241423,-430.1,0.00032876,8]
[360009165,1746478241434,-400.0,0.00032876,8]
[360009167,1746478241444,-563.39,0.00032876,8]
[360009169,1746478241453,-400.0,0.00032876,8]
[360009171,1746478241462,-400.0,0.00032876,8]
[360009173,1746478241471,-400.0,0.00032876,8]
[360009175,1746478241481,-400.0,0.00032876,8]
[360009177,1746478241491,-2969.31,0.00032876,8]
[360009179,1746478241500,-605.17,0.00032876,8]
[360009181,1746478241509,-400.0,0.00032876,8]
[360009183,1746478241519,-400.0,0.00032876,8]
[360009184,1746478241529,-400.0,0.00032876,8]
[360009185,1746478241539,-2239.62,0.00032876,8]
[360009186,1746478241548,-401.12,0.00032876,8]
[360009187,1746478241557,-4096.94,0.00032876,8]
[360009188,1746478241566,-400.0,0.00032876,8]
[360009189,1746478241576,-400.0,0.00032876,8]
[360009190,1746478241585,-407.22957232,0.00032876,8]
[360009191,1746478241594,-3050.13,0.00032876,8]
[360009192,1746478241604,-2910.47,0.00032876,8]
[360009193,1746478241613,-773.72,0.00032876,8]
[360009194,1746478241622,-400.0,0.00032876,8]
[360009195,1746478241631,-1317.05,0.00032876,8]
[360009196,1746478241640,-400.0,0.00032876,8]
[360009197,1746478241649,-2598.82,0.00032876,8]
[360009198,1746478241659,-400.0,0.00032876,8]
[360009200,1746478241668,-417.65,0.00032876,8]
[360009202,1746478241677,-552.03,0.00032876,8]
[360009204,1746478241687,-400.0,0.00032876,8]
[360009206,1746478241697,-400.0,0.00032876,8]
[360009208,1746478241706,-400.0,0.00032876,8]
[360009210,1746478241715,-510.92,0.00032876,8]
[360009212,1746478241725,-2556.58,0.00032876,8]
[360009214,1746478241735,-400.0,0.00032876,8]
[360009216,1746478241744,-717.05,0.00032876,8]
[360009218,1746478241754,-400.0,0.00032876,8]
[360009220,1746478241764,-2500.71,0.00032876,8]
[360009222,1746478241773,-1021.6,0.00032876,8]
[360009224,1746478241783,-400.0,0.00032876,8]
[360009226,1746478241793,-400.0,0.00032876,8]
[360009228,1746478241802,-400.0,0.00032876,8]
[360009230,1746478241812,-1929.98,0.00032876,8]
[360009232,1746478241821,-400.0,0.00032876,8]
[360009234,1746478241831,-400.0,0.00032876,8]
[360009236,1746478241840,-400.0,0.00032876,8]
[360009238,1746478241850,-400.0,0.00032876,8]
[360009240,1746478241859,-419.74,0.00032876,8]
[360009243,1746478241869,-400.0,0.00032876,8]
[360009245,1746478241879,-1671.31,0.00032876,8]
[360009247,1746478241889,-926.06,0.00032876,8]
[360009249,1746478241900,-400.0,0.00032876,8]
[360009251,1746478241910,-400.0,0.00032876,8]
[360009253,1746478241919,-766.89,0.00032876,8]
[360009255,1746478241928,-1401.18,0.00032876,8]
[360009257,1746478241938,-400.0,0.00032876,8]
[360009259,1746478241947,-400.0,0.00032876,8]
[360009261,1746478241960,-400.0,0.00032876,8]
[360009263,1746478241970,-2028.41,0.00032876,8]
[360009265,1746478241978,-1584.51,0.00032876,8]
[360009267,1746478241988,-2185.29,0.00032876,8]
[360009269,1746478241999,-1838.89,0.00032876,8]
[360009271,1746478242008,-704.07,0.00032876,8]
[360009273,1746478242018,-400.0,0.00032876,8]
[360009275,1746478242027,-400.0,0.00032876,8]
[360009277,1746478242037,-400.0,0.00032876,8]
[360009279,1746478242046,-400.0,0.00032876,8]
[360009281,1746478242055,-559.26,0.00032876,8]
[360009283,1746478242065,-426.69,0.00032876,8]
[360009285,1746478242075,-1274.13,0.00032876,8]
[360009287,1746478242084,-2367.5,0.00032876,8]
[360009289,1746478242094,-400.0,0.00032876,8]
[360009291,1746478242103,-400.0,0.00032876,8]
[360009293,1746478242113,-400.0,0.00032876,8]
[360009295,1746478242122,-1755.88,0.00032876,8]
[360009297,1746478242131,-400.0,0.00032876,8]
[360009299,1746478242141,-400.0,0.00032876,8]
[360009301,1746478242151,-400.0,0.00032876,8]
[360009303,1746478242161,-400.0,0.00032876,8]
[360009305,1746478242170,-444.31,0.00032876,8]
[360009307,1746478242179,-400.0,0.00032876,8]
[360009309,1746478242189,-558.74,0.00032876,8]
[360009311,1746478242199,-400.0,0.00032876,8]
[360009313,1746478242209,-400.0,0.00032876,8]
[360009315,1746478242219,-400.0,0.00032876,8]
[360009317,1746478242228,-1256.74,0.00032876,8]
[360009320,1746478242237,-804.09,0.00032876,8]
[360009321,1746478242246,-8688.02,0.00032876,8]
[360009324,1746478242256,-441.62,0.00032876,8]
[360009326,1746478242266,-400.0,0.00032876,8]
[360009328,1746478242275,-598.18,0.00032876,8]
[360009330,1746478242285,-400.0,0.00032876,8]
[360009331,1746478242294,-975.04,0.00032876,8]
[360009333,1746478242304,-400.0,0.00032876,8]
[360009336,1746478242314,-411.14,0.00032876,8]
[360009337,1746478242323,-400.0,0.00032876,8]
[360009339,1746478242333,-400.0,0.00032876,8]
[360009341,1746478242343,-400.0,0.00032876,8]
[360009344,1746478242352,-400.0,0.00032876,8]
[360009346,1746478242362,-1817.46,0.00032876,8]
[360009348,1746478242374,-436.25,0.00032876,8]
[360009351,1746478242384,-400.0,0.00032876,8]
[360009354,1746478242394,-460.72,0.00032876,8]
[360009357,1746478242403,-3933.64,0.00032876,8]
[360009359,1746478242412,-491.82,0.00032876,8]
[360009361,1746478242422,-21455.99,0.00032876,8]
[360009363,1746478242431,-400.0,0.00032876,8]
[360009365,1746478242442,-400.0,0.00032876,8]
[360009367,1746478242452,-400.0,0.00032876,8]
[360009369,1746478242461,-400.0,0.00032876,8]
[360009371,1746478242471,-699.19,0.00032876,8]
[360009373,1746478242480,-400.0,0.00032876,8]
[360009375,1746478242490,-2258.67,0.00032876,8]
[360009377,1746478242500,-518.32,0.00032876,8]
[360009379,1746478242509,-420.26230477,0.00032876,8]
[360009381,1746478242519,-435.9974545,0.00032876,8]
[360009383,1746478242528,-866.11,0.00032876,8]
[360009385,1746478242537,-1754.39,0.00032876,8]
[360009388,1746478242547,-568.11,0.00032876,8]
[360009391,1746478242556,-400.0,0.00032876,8]
[360009394,1746478242565,-493.11,0.00032876,8]
[360009398,1746478242575,-2851.87,0.00032876,8]
[360009402,1746478242584,-400.0,0.00032876,8]
[360009406,1746478242593,-2650.13,0.00032876,8]
[360009409,1746478242603,-400.76,0.00032876,8]
[360009412,1746478242614,-400.0,0.00032876,8]
[360009414,1746478242622,-401.07692146,0.00032876,8]
[360009417,1746478242632,-400.0,0.00032876,8]
[360009448,1746478242795,-1576.25,0.00032876,8]
[360009450,1746478242805,-400.0,0.00032876,8]
[360009452,1746478242816,-400.0,0.00032876,8]
[360009454,1746478242825,-400.0,0.00032876,8]
[360009456,1746478242835,-1372.78,0.00032876,8]
[360009458,1746478242844,-400.0,0.00032876,8]
[360009460,1746478242854,-999.53,0.00032876,8]
[360009462,1746478242864,-400.0,0.00032876,8]
[360009464,1746478242873,-516.04,0.00032876,8]
[360009466,1746478242883,-1376.17,0.00032876,8]
[360009468,1746478242893,-661.72,0.00032876,8]
[360009470,1746478242902,-6359.3,0.00032876,8]
[360009472,1746478242912,-940.89,0.00032876,8]
[360009474,1746478242922,-400.0,0.00032876,8]
[360009476,1746478242932,-400.0,0.00032876,8]
[360009478,1746478242942,-8405.77,0.00032876,8]
[360009480,1746478242956,-400.0,0.00032876,8]
[360009482,1746478242966,-1110.72,0.00032876,8]
[360009484,1746478242976,-1647.64,0.00032876,8]
[360009486,1746478242985,-400.0,0.00032876,8]
[360009488,1746478242995,-400.0,0.00032876,8]
[360009490,1746478243005,-400.0,0.00032876,8]
[360009492,1746478243014,-159.58086022,0.00032876,8]
[360009494,1746478243024,-400.0,0.00032876,8]
[360009496,1746478243035,-487.22,0.00032876,8]
[360009498,1746478243045,-400.0,0.00032876,2]
[360009500,1746478243054,-400.0,0.00032876,8]
[360009502,1746478243063,-400.0,0.00032876,8]
[360009504,1746478243072,-400.0,0.00032876,2]
[360009505,1746478243081,-690.94,0.00032876,8]
[360009508,1746478243091,-400.0,0.00032876,8]
[360009510,1746478243100,-2712.48,0.00032876,8]
[360009511,1746478243109,-400.0,0.00032876,8]
[360009513,1746478243120,-400.0,0.00032876,2]
[360009516,1746478243130,-400.0,0.00032876,8]
[360009518,1746478243139,-7219.73,0.000329,30]
[360009521,1746478243148,-3326.55,0.000329,7]
[360009522,1746478243157,-12607.13495863,0.000329,30]
[360009525,1746478243167,-160.0,0.000329,30]
[360009527,1746478243176,-421.83547488,0.000329,30]
[360009529,1746478243186,-182.23035355,0.000329,30]
[360009530,1746478243196,-841.77443764,0.000329,30]
[360009533,1746478243205,-901.39369904,0.00032902,2]
[360009534,1746478243214,-501.34714269,0.00033072,28]
[360009536,1746478243224,-158.751896,0.0003312,2]
[360009538,1746478243233,-1465.62,0.0003315,8]
[360009540,1746478243242,-400.0,0.0003315,8]
[360009543,1746478243251,-400.0,0.0003315,8]
[360009545,1746478243261,-400.0,0.0003315,8]
[360009547,1746478243270,-400.0,0.0003315,8]
[360009548,1746478243279,-400.0,0.0003315,8]
[360009551,1746478243289,-400.0,0.0003315,8]
[360009553,1746478243298,-400.0,0.0003315,8]
[360009554,1746478243307,-506.86,0.0003315,8]
[360009556,1746478243317,-400.0,0.0003315,8]
[360009558,1746478243326,-400.0,0.0003315,8]
[360009560,1746478243335,-650.49,0.0003315,8]
[360009562,1746478243344,-319.8011094,0.0003315,8]
[360009565,1746478243356,-400.0,0.0003315,8]
[360009567,1746478243365,-400.0,0.0003315,8]
[360009569,1746478243375,-400.0,0.0003315,8]
[360009571,1746478243384,-400.0,0.0003315,8]